[Event "Late-Titled-Tuesday-Blitz-January-23-2024"]
[Site "Chess.com"]
[Date "2024.01.23"]
[Round "1"]
[White "OneTrickPony_82"]
[Black "dmitrijiIM"]
[Result "0-1"]
[WhiteElo "2498"]
[BlackElo "2929"]
[TimeControl "180+1"]
[EndTime "14:08:26 PST"]
[Termination "dmitrijiIM won by resignation"]

1. d4 {[%clk 0:03:00.9]} 1... Nf6 {[%clk 0:02:58.3]} 2. c4 {[%clk 0:02:59.7]}
2... g6 {[%clk 0:02:56.5]} 3. Nc3 {[%clk 0:02:59]} 3... Bg7 {[%clk 0:02:56.4]}
4. e4 {[%clk 0:02:58.9]} 4... d6 {[%clk 0:02:56.4]} 5. Nf3 {[%clk 0:02:59.5]}
5... O-O {[%clk 0:02:56.3]} 6. Be2 {[%clk 0:03:00.1]} 6... e5 {[%clk 0:02:56]}
7. O-O {[%clk 0:03:00.3]} 7... exd4 {[%clk 0:02:55.5]} 8. Nxd4 {[%clk 0:03:00]}
8... Re8 {[%clk 0:02:55]} 9. f3 {[%clk 0:03:00.5]} 9... c6 {[%clk 0:02:50.6]}
10. Nc2 {[%clk 0:02:59.8]} 10... Na6 {[%clk 0:02:30.7]} 11. Kh1 {[%clk 0:02:53]}
11... Nc7 {[%clk 0:02:27.9]} 12. Bg5 {[%clk 0:02:43.6]} 12... h6 {[%clk
0:02:03.7]} 13. Bh4 {[%clk 0:02:43.4]} 13... d5 {[%clk 0:01:55.1]} 14. cxd5
{[%clk 0:02:35.9]} 14... cxd5 {[%clk 0:01:56]} 15. Nxd5 {[%clk 0:02:32]} 15...
Ncxd5 {[%clk 0:01:52.4]} 16. exd5 {[%clk 0:02:32.1]} 16... Qxd5 {[%clk
0:01:50.4]} 17. Qxd5 {[%clk 0:02:27.4]} 17... Nxd5 {[%clk 0:01:51.3]} 18. Bc4
{[%clk 0:02:26]} 18... Be6 {[%clk 0:01:41]} 19. Rad1 {[%clk 0:02:16.7]} 19...
Nf4 {[%clk 0:01:20.6]} 20. Bb5 {[%clk 0:02:10.3]} 20... Rec8 {[%clk 0:01:18.5]}
21. Nd4 {[%clk 0:02:08.1]} 21... Bc4 {[%clk 0:01:18.8]} 22. Rfe1 {[%clk
0:01:47.6]} 22... Nd3 {[%clk 0:01:05.8]} 23. Bxc4 {[%clk 0:01:23]} 23... Nxe1
{[%clk 0:01:03.6]} 24. Bb3 {[%clk 0:01:20.9]} 24... Bxd4 {[%clk 0:00:50.3]} 25.
Rxd4 {[%clk 0:00:56.6]} 25... Rc1 {[%clk 0:00:39]} 26. Bd1 {[%clk 0:00:56.5]}
26... Nc2 {[%clk 0:00:33.2]} 27. Rd3 {[%clk 0:00:45.6]} 27... Ne3 {[%clk
0:00:29.1]} 28. Rxe3 {[%clk 0:00:45.7]} 28... Rxd1+ {[%clk 0:00:29.3]} 29. Be1
{[%clk 0:00:46.1]} 29... Rc8 {[%clk 0:00:27.9]} 30. Kg1 {[%clk 0:00:44.2]} 30...
Rc2 {[%clk 0:00:26.7]} 31. h4 {[%clk 0:00:36.2]} 31... h5 {[%clk 0:00:26.5]} 32.
Kh2 {[%clk 0:00:35.3]} 32... Rd8 {[%clk 0:00:20.7]} 33. Bc3 {[%clk 0:00:32.3]}
33... b5 {[%clk 0:00:19.1]} 34. a3 {[%clk 0:00:22.2]} 34... Rc8 {[%clk
0:00:17.1]} 35. Kg3 {[%clk 0:00:20.6]} 35... a5 {[%clk 0:00:16.3]} 36. Re4
{[%clk 0:00:19.7]} 36... Kh7 {[%clk 0:00:11.8]} 37. Re7 {[%clk 0:00:18.7]} 37...
Kg8 {[%clk 0:00:12.1]} 38. Re4 {[%clk 0:00:18.5]} 38... R8xc3 {[%clk 0:00:06.3]}
39. bxc3 {[%clk 0:00:18]} 39... Rxc3 {[%clk 0:00:07.2]} 40. Re8+ {[%clk
0:00:14.5]} 40... Kg7 {[%clk 0:00:07.2]} 41. Rb8 {[%clk 0:00:15.1]} 41... Rb3
{[%clk 0:00:07.3]} 42. Kf4 {[%clk 0:00:13.8]} 42... a4 {[%clk 0:00:06.1]} 43.
Rb7 {[%clk 0:00:12.7]} 43... Kf6 {[%clk 0:00:05.8]} 44. Rb6+ {[%clk 0:00:12.9]}
44... Ke7 {[%clk 0:00:06.3]} 45. g4 {[%clk 0:00:13]} 45... Kd7 {[%clk
0:00:05.8]} 46. gxh5 {[%clk 0:00:12]} 46... gxh5 {[%clk 0:00:06.7]} 47. Kg5
{[%clk 0:00:11.5]} 47... Kc7 {[%clk 0:00:06.6]} 48. Rf6 {[%clk 0:00:10.8]} 48...
Rxa3 {[%clk 0:00:06.7]} 49. Kxh5 {[%clk 0:00:09.9]} 49... Rc3 {[%clk 0:00:04.5]}
50. Rxf7+ {[%clk 0:00:08.7]} 50... Kb6 {[%clk 0:00:04.8]} 51. Kg4 {[%clk
0:00:07.5]} 51... a3 {[%clk 0:00:04.8]} 52. Rf6+ {[%clk 0:00:05.9]} 52... Rc6
{[%clk 0:00:04.1]} 53. Rf8 {[%clk 0:00:04.4]} 53... a2 {[%clk 0:00:04.3]} 54.
Ra8 {[%clk 0:00:04.2]} 54... Rc4+ {[%clk 0:00:04.6]} 55. Kg3 {[%clk 0:00:04.2]}
55... Ra4 {[%clk 0:00:05.5]} 56. Rxa4 {[%clk 0:00:02.1]} 56... bxa4 {[%clk
0:00:06.4]} 0-1

[Event "Late-Titled-Tuesday-Blitz-January-23-2024"]
[Site "Chess.com"]
[Date "2024.01.23"]
[Round "1"]
[White "M1711"]
[Black "smotherhubbard"]
[Result "1-0"]
[WhiteElo "2638"]
[BlackElo "2323"]
[TimeControl "180+1"]
[EndTime "14:08:26 PST"]
[Termination "M1711 won by resignation"]

1. b3 {[%clk 0:03:00.9]} 1... e5 {[%clk 0:02:58.6]} 2. Bb2 {[%clk 0:03:00.4]}
2... d6 {[%clk 0:02:59.2]} 3. e3 {[%clk 0:02:59.7]} 3... Nd7 {[%clk 0:02:59.8]}
4. d3 {[%clk 0:02:59.3]} 4... f5 {[%clk 0:02:59.5]} 5. c4 {[%clk 0:02:53.4]}
5... Ngf6 {[%clk 0:02:59.8]} 6. Nc3 {[%clk 0:02:53.5]} 6... g6 {[%clk
0:03:00.3]} 7. g3 {[%clk 0:02:52.8]} 7... Bg7 {[%clk 0:03:00.9]} 8. Bg2 {[%clk
0:02:53.2]} 8... O-O {[%clk 0:03:01.2]} 9. Nge2 {[%clk 0:02:53.8]} 9... c6
{[%clk 0:03:01]} 10. O-O {[%clk 0:02:54.2]} 10... Rf7 {[%clk 0:02:41.4]} 11. Qd2
{[%clk 0:02:50.7]} 11... Nf8 {[%clk 0:02:41.3]} 12. d4 {[%clk 0:02:42]} 12...
Qc7 {[%clk 0:02:40.6]} 13. Rad1 {[%clk 0:02:36]} 13... Bd7 {[%clk 0:02:31.6]}
14. dxe5 {[%clk 0:02:27.5]} 14... dxe5 {[%clk 0:02:30.6]} 15. Na4 {[%clk
0:02:28.1]} 15... Re8 {[%clk 0:02:26.8]} 16. Qd6 {[%clk 0:02:22.8]} 16... Qxd6
{[%clk 0:02:07.9]} 17. Rxd6 {[%clk 0:02:23.7]} 17... g5 {[%clk 0:01:56.3]} 18.
Rfd1 {[%clk 0:02:11.4]} 18... Ng6 {[%clk 0:01:54.1]} 19. Nc5 {[%clk 0:02:07.8]}
19... Bc8 {[%clk 0:01:54.2]} 20. Rd8 {[%clk 0:02:06.6]} 20... Rff8 {[%clk
0:01:52.3]} 21. Rxe8 {[%clk 0:02:05.2]} 21... Rxe8 {[%clk 0:01:53.2]} 22. Kf1
{[%clk 0:01:34.6]} 22... Bf8 {[%clk 0:01:52.9]} 23. Nd3 {[%clk 0:01:30.8]} 23...
Kf7 {[%clk 0:01:44.9]} 24. Ne1 {[%clk 0:01:22.1]} 24... h5 {[%clk 0:01:35.9]}
25. Nc2 {[%clk 0:01:10]} 25... a5 {[%clk 0:01:29.4]} 26. a3 {[%clk 0:01:07.1]}
26... Bg7 {[%clk 0:01:17]} 27. b4 {[%clk 0:01:06.3]} 27... axb4 {[%clk
0:01:14.9]} 28. axb4 {[%clk 0:01:07.2]} 28... h4 {[%clk 0:01:15]} 29. b5 {[%clk
0:01:06.5]} 29... cxb5 {[%clk 0:01:13.8]} 30. cxb5 {[%clk 0:01:06.4]} 30... hxg3
{[%clk 0:01:13.5]} 31. hxg3 {[%clk 0:01:05.1]} 31... f4 {[%clk 0:01:13.7]} 32.
gxf4 {[%clk 0:00:58.9]} 32... gxf4 {[%clk 0:01:13.1]} 33. exf4 {[%clk
0:00:58.9]} 33... Nxf4 {[%clk 0:01:11.7]} 34. Nxf4 {[%clk 0:00:58.7]} 34... exf4
{[%clk 0:01:12.6]} 35. Nb4 {[%clk 0:00:42]} 35... Be6 {[%clk 0:01:06.5]} 36. b6
{[%clk 0:00:34.4]} 36... Bc4+ {[%clk 0:01:02.6]} 37. Kg1 {[%clk 0:00:33.9]}
37... Re7 {[%clk 0:01:02.6]} 38. Rc1 {[%clk 0:00:29.8]} 38... Be2 {[%clk
0:00:58.1]} 39. Bxf6 {[%clk 0:00:23]} 39... Bxf6 {[%clk 0:00:59]} 40. Nd5 {[%clk
0:00:22.6]} 40... Rd7 {[%clk 0:00:54.5]} 41. Rc7 {[%clk 0:00:16]} 41... Bg4
{[%clk 0:00:51.8]} 42. Nxf4 {[%clk 0:00:06.5]} 42... Be5 {[%clk 0:00:47.5]} 43.
Nd3 {[%clk 0:00:05.1]} 43... Bxc7 {[%clk 0:00:46]} 44. bxc7 {[%clk 0:00:03.2]}
44... Rxc7 {[%clk 0:00:46.9]} 45. Ne5+ {[%clk 0:00:03.6]} 45... Ke6 {[%clk
0:00:42.1]} 46. Nxg4 {[%clk 0:00:04.5]} 46... Rc1+ {[%clk 0:00:36.9]} 47. Kh2
{[%clk 0:00:04.8]} 47... b5 {[%clk 0:00:36.1]} 48. Kg3 {[%clk 0:00:03]} 48... b4
{[%clk 0:00:32.9]} 49. Ne3 {[%clk 0:00:03.6]} 49... b3 {[%clk 0:00:32.5]} 50.
Bd5+ {[%clk 0:00:03.7]} 50... Ke5 {[%clk 0:00:31]} 51. Bxb3 {[%clk 0:00:04.6]}
51... Rg1+ {[%clk 0:00:30.7]} 52. Kf3 {[%clk 0:00:04.8]} 52... Rg7 {[%clk
0:00:31.1]} 53. Bc2 {[%clk 0:00:04.4]} 53... Rf7+ {[%clk 0:00:30.4]} 54. Ke2
{[%clk 0:00:04.2]} 54... Kd4 {[%clk 0:00:30]} 55. Nf5+ {[%clk 0:00:03.7]} 55...
Ke5 {[%clk 0:00:28.9]} 56. Ke3 {[%clk 0:00:03.6]} 56... Rc7 {[%clk 0:00:24.1]}
57. Bd3 {[%clk 0:00:04.1]} 57... Rc3 {[%clk 0:00:23.5]} 58. f4+ {[%clk
0:00:03.9]} 58... Kf6 {[%clk 0:00:23.2]} 59. Ng3 {[%clk 0:00:04.3]} 59... Ra3
{[%clk 0:00:22.5]} 60. Ne4+ {[%clk 0:00:04.9]} 60... Ke6 {[%clk 0:00:21.1]} 61.
Nf2 {[%clk 0:00:04.1]} 61... Kf6 {[%clk 0:00:21.1]} 62. Ke4 {[%clk 0:00:03.8]}
62... Ra4+ {[%clk 0:00:20]} 63. Kf3 {[%clk 0:00:04.3]} 63... Ke6 {[%clk
0:00:20.2]} 64. Be4 {[%clk 0:00:03.9]} 64... Kf6 {[%clk 0:00:20.3]} 65. Kg4
{[%clk 0:00:03.6]} 65... Rb4 {[%clk 0:00:19.4]} 66. Kf3 {[%clk 0:00:03.4]} 66...
Rb3+ {[%clk 0:00:19.1]} 67. Kg2 {[%clk 0:00:03.6]} 67... Rb2 {[%clk 0:00:19]}
68. Kg3 {[%clk 0:00:03.9]} 68... Rb3+ {[%clk 0:00:19.6]} 69. Bf3 {[%clk
0:00:04.5]} 69... Kf5 {[%clk 0:00:19.2]} 70. Ng4 {[%clk 0:00:05.2]} 70... Rb4
{[%clk 0:00:18.3]} 71. Ne3+ {[%clk 0:00:04.4]} 71... Kf6 {[%clk 0:00:18.7]} 72.
Nd5+ {[%clk 0:00:04.9]} 72... Kf5 {[%clk 0:00:18]} 73. Nxb4 {[%clk 0:00:05.8]}
1-0

[Event "Late-Titled-Tuesday-Blitz-January-23-2024"]
[Site "Chess.com"]
[Date "2024.01.23"]
[Round "1"]
[White "DonJuan_34"]
[Black "Alex_Sahakyan2006"]
[Result "0-1"]
[WhiteElo "2401"]
[BlackElo "2718"]
[TimeControl "180+1"]
[EndTime "14:08:27 PST"]
[Termination "Alex_Sahakyan2006 won by resignation"]

1. d4 {[%clk 0:02:57.7]} 1... Nf6 {[%clk 0:02:57.6]} 2. c4 {[%clk 0:02:57.4]}
2... c5 {[%clk 0:02:57]} 3. d5 {[%clk 0:02:57.3]} 3... b5 {[%clk 0:02:57.1]} 4.
cxb5 {[%clk 0:02:57.1]} 4... a6 {[%clk 0:02:57]} 5. bxa6 {[%clk 0:02:57.3]} 5...
g6 {[%clk 0:02:56.9]} 6. Nc3 {[%clk 0:02:57.4]} 6... Bg7 {[%clk 0:02:57.2]} 7.
e4 {[%clk 0:02:58]} 7... O-O {[%clk 0:02:57.6]} 8. e5 {[%clk 0:02:49.2]} 8...
Ne8 {[%clk 0:02:56.7]} 9. Nf3 {[%clk 0:02:48.6]} 9... Bxa6 {[%clk 0:02:49.9]}
10. Bxa6 {[%clk 0:02:47.5]} 10... Nxa6 {[%clk 0:02:49.9]} 11. O-O {[%clk
0:02:47.8]} 11... d6 {[%clk 0:02:46.3]} 12. Re1 {[%clk 0:02:39]} 12... Nac7
{[%clk 0:02:12.5]} 13. a4 {[%clk 0:02:25.8]} 13... Ra6 {[%clk 0:01:57.7]} 14.
Bf4 {[%clk 0:02:07.2]} 14... Rb6 {[%clk 0:01:50.4]} 15. Qd2 {[%clk 0:02:03.6]}
15... Qb8 {[%clk 0:01:49.2]} 16. Rab1 {[%clk 0:01:55.6]} 16... Rb4 {[%clk
0:01:45.8]} 17. Bh6 {[%clk 0:01:50.3]} 17... Qc8 {[%clk 0:01:18.1]} 18. h3
{[%clk 0:01:38.2]} 18... Qf5 {[%clk 0:01:15]} 19. exd6 {[%clk 0:01:31.2]} 19...
exd6 {[%clk 0:01:12.5]} 20. Bxg7 {[%clk 0:01:28.8]} 20... Kxg7 {[%clk
0:01:09.6]} 21. Qg5 {[%clk 0:01:13]} 21... Qxg5 {[%clk 0:01:04.6]} 22. Nxg5
{[%clk 0:01:13]} 22... Nf6 {[%clk 0:01:04.3]} 23. Nge4 {[%clk 0:01:12.6]} 23...
Nxe4 {[%clk 0:00:58.2]} 24. Nxe4 {[%clk 0:00:44]} 24... Rxa4 {[%clk 0:00:58.1]}
25. Nxd6 {[%clk 0:00:40.5]} 25... Nxd5 {[%clk 0:00:56.6]} 26. Ne4 {[%clk
0:00:40.4]} 26... Rc8 {[%clk 0:00:47.6]} 27. Rbc1 {[%clk 0:00:39.4]} 27... Ra5
{[%clk 0:00:21]} 28. Nd6 {[%clk 0:00:38.8]} 28... Rc6 {[%clk 0:00:18.3]} 29. Nc4
{[%clk 0:00:38.7]} 29... Ra2 {[%clk 0:00:15.6]} 30. Red1 {[%clk 0:00:38.6]}
30... Nf4 {[%clk 0:00:15.2]} 31. Rd2 {[%clk 0:00:36.3]} 31... Ne6 {[%clk
0:00:10.9]} 32. Ne5 {[%clk 0:00:34.7]} 32... Rc7 {[%clk 0:00:10.7]} 33. Nd3
{[%clk 0:00:33.2]} 33... Rd7 {[%clk 0:00:09.3]} 34. Rcc2 {[%clk 0:00:30.5]}
34... Nd4 {[%clk 0:00:06.4]} 35. Nxc5 {[%clk 0:00:24.3]} 35... Rd5 {[%clk
0:00:06.4]} 36. Ne4 {[%clk 0:00:15]} 36... f5 {[%clk 0:00:03.2]} 37. Nc3 {[%clk
0:00:14.6]} 37... Rd7 {[%clk 0:00:02.5]} 38. Kh2 {[%clk 0:00:13.5]} 38... Raa7
{[%clk 0:00:01.9]} 39. Ne2 {[%clk 0:00:13.2]} 39... Nxc2 {[%clk 0:00:02.1]} 40.
Rxc2 {[%clk 0:00:13.6]} 40... Rac7 {[%clk 0:00:02.5]} 41. Rxc7 {[%clk
0:00:12.7]} 41... Rxc7 {[%clk 0:00:03.4]} 42. Nd4 {[%clk 0:00:12.8]} 42... Rb7
{[%clk 0:00:03.5]} 43. b3 {[%clk 0:00:12.8]} 43... Rb4 {[%clk 0:00:03.7]} 44.
Ne6+ {[%clk 0:00:12.5]} 44... Kf6 {[%clk 0:00:04]} 45. Nc5 {[%clk 0:00:13.4]}
45... Rb5 {[%clk 0:00:04.2]} 46. Nd3 {[%clk 0:00:12]} 46... Rxb3 {[%clk
0:00:04.2]} 47. Ne1 {[%clk 0:00:12.4]} 47... Rb2 {[%clk 0:00:03.9]} 48. Kg1
{[%clk 0:00:11.8]} 48... Rb1 {[%clk 0:00:04]} 49. Kf1 {[%clk 0:00:11.5]} 49...
f4 {[%clk 0:00:04.4]} 50. Ke2 {[%clk 0:00:11.8]} 50... Rb2+ {[%clk 0:00:04.3]}
51. Kf1 {[%clk 0:00:11.8]} 51... Kf5 {[%clk 0:00:04.2]} 52. Nf3 {[%clk
0:00:11.4]} 52... g5 {[%clk 0:00:03.8]} 53. Nd4+ {[%clk 0:00:08.5]} 53... Ke4
{[%clk 0:00:04.1]} 54. Nf3 {[%clk 0:00:08.5]} 54... h6 {[%clk 0:00:03.9]} 55.
Nh2 {[%clk 0:00:07.4]} 55... Kd3 {[%clk 0:00:04]} 56. g3 {[%clk 0:00:06.6]}
56... fxg3 {[%clk 0:00:03.6]} 57. Ng4 {[%clk 0:00:06.6]} 57... gxf2 {[%clk
0:00:03.1]} 58. Nxf2+ {[%clk 0:00:06.2]} 58... Ke3 {[%clk 0:00:03.4]} 59. Ng4+
{[%clk 0:00:07.1]} 59... Kf3 {[%clk 0:00:03.6]} 60. Ne5+ {[%clk 0:00:06.7]}
60... Kg3 {[%clk 0:00:04.1]} 61. Ng4 {[%clk 0:00:06]} 61... Kxh3 {[%clk
0:00:04.1]} 62. Nxh6 {[%clk 0:00:05.9]} 62... g4 {[%clk 0:00:04.8]} 63. Nf5
{[%clk 0:00:06.1]} 63... g3 {[%clk 0:00:05.3]} 0-1

[Event "Late-Titled-Tuesday-Blitz-January-23-2024"]
[Site "Chess.com"]
[Date "2024.01.23"]
[Round "1"]
[White "Mops_2004"]
[Black "SergioMoralesG"]
[Result "1-0"]
[WhiteElo "2854"]
[BlackElo "2463"]
[TimeControl "180+1"]
[EndTime "14:08:28 PST"]
[Termination "Mops_2004 won by checkmate"]

1. Nf3 {[%clk 0:03:00.9]} 1... c5 {[%clk 0:02:59.4]} 2. c4 {[%clk 0:03:00.4]}
2... Nc6 {[%clk 0:02:59.9]} 3. Nc3 {[%clk 0:03:01.1]} 3... Nf6 {[%clk
0:02:58.6]} 4. d4 {[%clk 0:03:00.3]} 4... cxd4 {[%clk 0:02:57.6]} 5. Nxd4 {[%clk
0:03:01.2]} 5... e6 {[%clk 0:02:58.1]} 6. e4 {[%clk 0:03:00.8]} 6... Bb4 {[%clk
0:02:56.9]} 7. Nxc6 {[%clk 0:03:00.6]} 7... bxc6 {[%clk 0:02:57.8]} 8. Bd3
{[%clk 0:03:00.7]} 8... e5 {[%clk 0:02:58.2]} 9. O-O {[%clk 0:03:00.2]} 9... Bc5
{[%clk 0:02:58.4]} 10. Re1 {[%clk 0:02:46.3]} 10... h6 {[%clk 0:02:55.8]} 11.
Be3 {[%clk 0:02:46.1]} 11... Qe7 {[%clk 0:02:48.9]} 12. a3 {[%clk 0:02:29.1]}
12... a5 {[%clk 0:02:45.5]} 13. Bxc5 {[%clk 0:02:18.5]} 13... Qxc5 {[%clk
0:02:45.3]} 14. b4 {[%clk 0:02:15.8]} 14... axb4 {[%clk 0:02:36.6]} 15. axb4
{[%clk 0:02:16.7]} 15... Rxa1 {[%clk 0:02:36.7]} 16. bxc5 {[%clk 0:02:17.1]}
16... Rxd1 {[%clk 0:02:35.7]} 17. Rxd1 {[%clk 0:02:18]} 17... Ke7 {[%clk
0:02:25.4]} 18. Ra1 {[%clk 0:02:04.4]} 18... Nh7 {[%clk 0:02:04.9]} 19. Na4
{[%clk 0:01:20]} 19... Ng5 {[%clk 0:01:43.8]} 20. Nb6 {[%clk 0:01:19.3]} 20...
Bb7 {[%clk 0:01:44.1]} 21. Ra7 {[%clk 0:01:16.1]} 21... Rb8 {[%clk 0:01:43.8]}
22. f3 {[%clk 0:01:03.7]} 22... Ne6 {[%clk 0:01:41.8]} 23. Na4 {[%clk 0:01:04]}
23... Ra8 {[%clk 0:01:11.7]} 24. Rxa8 {[%clk 0:01:03.6]} 24... Bxa8 {[%clk
0:01:12.6]} 25. Kf2 {[%clk 0:01:03.4]} 25... Bb7 {[%clk 0:01:09.2]} 26. Ke3
{[%clk 0:01:02.3]} 26... d6 {[%clk 0:01:02.1]} 27. cxd6+ {[%clk 0:01:01.7]}
27... Kxd6 {[%clk 0:01:03]} 28. g3 {[%clk 0:00:51.3]} 28... Nc5 {[%clk
0:00:58.5]} 29. Nb2 {[%clk 0:00:51.4]} 29... Ba6 {[%clk 0:00:56.2]} 30. f4
{[%clk 0:00:47.4]} 30... f6 {[%clk 0:00:51]} 31. Be2 {[%clk 0:00:41.7]} 31... g5
{[%clk 0:00:45.9]} 32. fxg5 {[%clk 0:00:39.4]} 32... fxg5 {[%clk 0:00:45.4]} 33.
h4 {[%clk 0:00:38.2]} 33... Ne6 {[%clk 0:00:35.3]} 34. hxg5 {[%clk 0:00:33.5]}
34... hxg5 {[%clk 0:00:35]} 35. Bg4 {[%clk 0:00:33.3]} 35... Nd4 {[%clk
0:00:32.3]} 36. Kd3 {[%clk 0:00:30.3]} 36... Kc5 {[%clk 0:00:31.3]} 37. Kc3
{[%clk 0:00:30.5]} 37... Kd6 {[%clk 0:00:26]} 38. Nd3 {[%clk 0:00:27.9]} 38...
c5 {[%clk 0:00:16.7]} 39. Nf2 {[%clk 0:00:27.8]} 39... Bb7 {[%clk 0:00:15.7]}
40. Kd3 {[%clk 0:00:22.9]} 40... Bc6 {[%clk 0:00:15.4]} 41. Nh3 {[%clk
0:00:21.8]} 41... Ba4 {[%clk 0:00:06.4]} 42. Nxg5 {[%clk 0:00:21.2]} 42... Bc2+
{[%clk 0:00:06.4]} 43. Kc3 {[%clk 0:00:20.5]} 43... Ba4 {[%clk 0:00:04.3]} 44.
Nf7+ {[%clk 0:00:20.1]} 44... Ke7 {[%clk 0:00:04.1]} 45. Nxe5 {[%clk 0:00:21]}
45... Kf6 {[%clk 0:00:04]} 46. Nd3 {[%clk 0:00:21.3]} 46... Kg5 {[%clk
0:00:03.8]} 47. Bc8 {[%clk 0:00:19.8]} 47... Bc6 {[%clk 0:00:03.4]} 48. Nxc5
{[%clk 0:00:19.4]} 48... Ne2+ {[%clk 0:00:03.4]} 49. Kb4 {[%clk 0:00:18.2]}
49... Nxg3 {[%clk 0:00:04.3]} 50. e5 {[%clk 0:00:16.6]} 50... Kf4 {[%clk
0:00:03.1]} 51. e6 {[%clk 0:00:16.7]} 51... Nf5 {[%clk 0:00:03.6]} 52. Ka5
{[%clk 0:00:16.3]} 52... Ne7 {[%clk 0:00:03.6]} 53. Bd7 {[%clk 0:00:16.5]} 53...
Ke5 {[%clk 0:00:03.4]} 54. Kb6 {[%clk 0:00:16.6]} 54... Bf3 {[%clk 0:00:02.8]}
55. Kc7 {[%clk 0:00:15.8]} 55... Kd4 {[%clk 0:00:02.9]} 56. Nb3+ {[%clk
0:00:12.1]} 56... Kxc4 {[%clk 0:00:03]} 57. Nd2+ {[%clk 0:00:12.3]} 57... Kd5
{[%clk 0:00:03]} 58. Nxf3 {[%clk 0:00:13.2]} 58... Ng6 {[%clk 0:00:02.4]} 59.
Kd8 {[%clk 0:00:12.7]} 59... Nf8 {[%clk 0:00:02.1]} 60. e7 {[%clk 0:00:12.9]}
60... Ne6+ {[%clk 0:00:01.7]} 61. Bxe6+ {[%clk 0:00:12.7]} 61... Kxe6 {[%clk
0:00:02.6]} 62. e8=Q+ {[%clk 0:00:13.1]} 62... Kf5 {[%clk 0:00:03.3]} 63. Qe5+
{[%clk 0:00:13.2]} 63... Kg6 {[%clk 0:00:03.4]} 64. Qf4 {[%clk 0:00:12.6]} 64...
Kg7 {[%clk 0:00:03.3]} 65. Qf5 {[%clk 0:00:12.5]} 65... Kg8 {[%clk 0:00:03.3]}
66. Qf6 {[%clk 0:00:12.5]} 66... Kh7 {[%clk 0:00:03.5]} 67. Ke7 {[%clk
0:00:12.9]} 67... Kg8 {[%clk 0:00:04.4]} 68. Ke6 {[%clk 0:00:13.4]} 68... Kh7
{[%clk 0:00:05.3]} 69. Kf5 {[%clk 0:00:13.9]} 69... Kg8 {[%clk 0:00:06.2]} 70.
Qe7 {[%clk 0:00:14.4]} 70... Kh8 {[%clk 0:00:06.3]} 71. Kg6 {[%clk 0:00:15.3]}
71... Kg8 {[%clk 0:00:07.2]} 72. Qe8# {[%clk 0:00:15.9]} 1-0

[Event "Late-Titled-Tuesday-Blitz-January-23-2024"]
[Site "Chess.com"]
[Date "2024.01.23"]
[Round "1"]
[White "Njal28"]
[Black "valeriocarnicelli"]
[Result "1-0"]
[WhiteElo "3039"]
[BlackElo "2527"]
[TimeControl "180+1"]
[EndTime "14:08:30 PST"]
[Termination "Njal28 won on time"]

1. d4 {[%clk 0:03:00.9]} 1... Nf6 {[%clk 0:02:59.6]} 2. c4 {[%clk 0:03:01.5]}
2... c5 {[%clk 0:02:59.8]} 3. d5 {[%clk 0:03:01.3]} 3... b5 {[%clk 0:03:00.3]}
4. cxb5 {[%clk 0:03:01.7]} 4... a6 {[%clk 0:02:59.8]} 5. e3 {[%clk 0:02:59.7]}
5... g6 {[%clk 0:02:59]} 6. Nc3 {[%clk 0:02:59.6]} 6... Bg7 {[%clk 0:02:59]} 7.
a4 {[%clk 0:03:00.1]} 7... O-O {[%clk 0:02:57.4]} 8. Ra3 {[%clk 0:02:59.7]} 8...
d6 {[%clk 0:02:57.5]} 9. e4 {[%clk 0:02:56.9]} 9... axb5 {[%clk 0:02:55]} 10.
Bxb5 {[%clk 0:02:57.8]} 10... Na6 {[%clk 0:02:55.2]} 11. Nf3 {[%clk 0:02:57.6]}
11... Nb4 {[%clk 0:02:52.9]} 12. h3 {[%clk 0:02:53]} 12... Ba6 {[%clk
0:02:50.9]} 13. O-O {[%clk 0:02:52]} 13... Bxb5 {[%clk 0:02:49]} 14. axb5 {[%clk
0:02:52.9]} 14... Nd7 {[%clk 0:02:44.7]} 15. Rxa8 {[%clk 0:02:38]} 15... Qxa8
{[%clk 0:02:45.6]} 16. Bg5 {[%clk 0:02:38]} 16... Re8 {[%clk 0:02:43.3]} 17. Qd2
{[%clk 0:02:36.2]} 17... Nb6 {[%clk 0:02:37.8]} 18. Bh6 {[%clk 0:02:31.9]} 18...
Bh8 {[%clk 0:02:06.6]} 19. Re1 {[%clk 0:02:13.6]} 19... Qa5 {[%clk 0:01:46.8]}
20. Qe2 {[%clk 0:01:52.1]} 20... Nd7 {[%clk 0:01:20.3]} 21. Bf4 {[%clk
0:01:45.8]} 21... Na2 {[%clk 0:01:00.7]} 22. e5 {[%clk 0:01:24.2]} 22... Nxc3
{[%clk 0:00:38.9]} 23. bxc3 {[%clk 0:01:25.1]} 23... dxe5 {[%clk 0:00:36.5]} 24.
Nxe5 {[%clk 0:01:26]} 24... Nxe5 {[%clk 0:00:26]} 25. Bxe5 {[%clk 0:01:26.9]}
25... Bxe5 {[%clk 0:00:26.4]} 26. Qxe5 {[%clk 0:01:27.1]} 26... Qxb5 {[%clk
0:00:27]} 27. d6 {[%clk 0:01:26.8]} 27... e6 {[%clk 0:00:26.5]} 28. Rd1 {[%clk
0:01:24.5]} 28... Rd8 {[%clk 0:00:20.6]} 29. h4 {[%clk 0:01:19.5]} 29... h5
{[%clk 0:00:20]} 30. g3 {[%clk 0:01:08.1]} 30... Rd7 {[%clk 0:00:20.2]} 31. Qf4
{[%clk 0:01:04]} 31... Qc6 {[%clk 0:00:19.1]} 32. c4 {[%clk 0:01:01.2]} 32...
Qa6 {[%clk 0:00:15.9]} 33. Qe5 {[%clk 0:00:43.1]} 33... Qc6 {[%clk 0:00:15.8]}
34. Rd2 {[%clk 0:00:34.3]} 34... Rd8 {[%clk 0:00:14.9]} 35. Rd3 {[%clk
0:00:30.1]} 35... Rd7 {[%clk 0:00:14.5]} 36. Qf4 {[%clk 0:00:30.3]} 36... Rd8
{[%clk 0:00:13.9]} 37. g4 {[%clk 0:00:28.3]} 37... Ra8 {[%clk 0:00:11.1]} 38.
Rd1 {[%clk 0:00:24.3]} 38... hxg4 {[%clk 0:00:11.4]} 39. Qxg4 {[%clk 0:00:24.3]}
39... Rd8 {[%clk 0:00:11.3]} 40. Qg3 {[%clk 0:00:24.9]} 40... Qe4 {[%clk
0:00:09.1]} 41. h5 {[%clk 0:00:15.3]} 41... Qe2 {[%clk 0:00:07.2]} 42. Rd3
{[%clk 0:00:10.7]} 42... Qxh5 {[%clk 0:00:07.2]} 43. d7 {[%clk 0:00:11.3]} 43...
e5 {[%clk 0:00:05.6]} 44. Rd5 {[%clk 0:00:10.3]} 44... Qf5 {[%clk 0:00:04.1]}
45. Rxe5 {[%clk 0:00:01.3]} 45... Qxd7 {[%clk 0:00:04]} 46. Rxc5 {[%clk
0:00:02.2]} 46... Qd1+ {[%clk 0:00:01.7]} 47. Kg2 {[%clk 0:00:02.8]} 47... Qd4
{[%clk 0:00:02.1]} 48. Rg5 {[%clk 0:00:02.1]} 48... Qe4+ {[%clk 0:00:02.3]} 49.
Qf3 {[%clk 0:00:02.1]} 49... Qxf3+ {[%clk 0:00:02.8]} 50. Kxf3 {[%clk
0:00:02.5]} 50... Rd4 {[%clk 0:00:02.9]} 51. c5 {[%clk 0:00:02.8]} 51... Rc4
{[%clk 0:00:03.4]} 52. Rd5 {[%clk 0:00:02.8]} 52... Kg7 {[%clk 0:00:03.5]} 53.
Ke3 {[%clk 0:00:03.5]} 53... Kf6 {[%clk 0:00:03.9]} 54. Kd3 {[%clk 0:00:04.3]}
54... Rc1 {[%clk 0:00:04.2]} 55. Kd4 {[%clk 0:00:03.6]} 55... Ke6 {[%clk
0:00:02.9]} 56. Rd6+ {[%clk 0:00:04.1]} 56... Ke7 {[%clk 0:00:03.3]} 57. Kd5
{[%clk 0:00:04.8]} 57... Rd1+ {[%clk 0:00:03.5]} 58. Kc6 {[%clk 0:00:05.5]}
58... Rc1 {[%clk 0:00:04]} 59. Rd2 {[%clk 0:00:05]} 59... f5 {[%clk 0:00:03.4]}
60. f4 {[%clk 0:00:04.9]} 60... Rc4 {[%clk 0:00:02.7]} 61. Rf2 {[%clk
0:00:04.4]} 61... Ke6 {[%clk 0:00:03]} 62. Kb6 {[%clk 0:00:02.8]} 62... Kd5
{[%clk 0:00:03.2]} 63. Rd2+ {[%clk 0:00:03.5]} 63... Ke4 {[%clk 0:00:03.4]} 64.
c6 {[%clk 0:00:04.3]} 64... Kxf4 {[%clk 0:00:03.2]} 65. Kb5 {[%clk 0:00:03.3]}
65... Rc3 {[%clk 0:00:01.9]} 66. Rd5 {[%clk 0:00:02.5]} 1-0